fUSD/lending_fUSD_20241122
["ID","MTS","AMOUNT","RATE_DAILY","PERIOD"]
[342975461,1732241453136,-500.0,0.00059599,120]
[342975462,1732241453147,-532.69669786,0.00059599,120]
[342975463,1732241453157,-555.97756873,0.00059599,120]
[342975464,1732241453167,-500.45696176,0.00059599,120]
[342975465,1732241453177,-540.3644278,0.00059599,120]
[342975466,1732241453187,-548.87497574,0.00059599,120]
[342975467,1732241453196,-501.06297619,0.00059599,120]
[342975468,1732241453206,-500.0,0.00059599,120]
[342975469,1732241453217,-530.97297945,0.00059599,120]
[342975470,1732241453226,-500.0,0.00059599,120]
[342975471,1732241453236,-500.0,0.00059599,120]
[342975472,1732241453246,-500.0,0.00059599,120]
[342975473,1732241453255,-500.0,0.00059599,120]
[342975474,1732241453265,-500.0,0.00059599,120]
[342975475,1732241453277,-544.81760143,0.00059599,120]
[342975476,1732241453287,-500.0,0.00059599,120]
[342975477,1732241453297,-500.0,0.00059599,120]
[342975478,1732241453306,-500.0,0.00059599,120]
[342975479,1732241453316,-500.0,0.00059599,120]
[342975480,1732241453325,-500.0,0.00059599,120]
[342975481,1732241453335,-500.0,0.00059599,120]
[342975482,1732241453345,-500.0,0.00059599,120]
[342975483,1732241453354,-500.0,0.00059599,120]
[342975484,1732241453363,-500.0,0.00059599,120]
[342975485,1732241453373,-500.0,0.00059599,120]
[342975486,1732241453382,-581.17544816,0.00059599,120]
[342975487,1732241453392,-500.0,0.00059599,120]
[342975488,1732241453401,-500.0,0.00059599,120]
[342975489,1732241453411,-500.0,0.00059599,120]
[342975490,1732241453420,-517.65316875,0.00059599,120]
[342975491,1732241453429,-500.5261311,0.00059599,120]
[342975492,1732241453438,-500.0,0.00059599,120]
[342975493,1732241453448,-500.0,0.00059599,120]
[342975494,1732241453457,-500.0,0.00059599,120]
[342975495,1732241453467,-500.0,0.00059599,120]
[342975496,1732241453476,-509.13317529,0.00059599,120]
[342975497,1732241453485,-500.0,0.00059599,120]
[342975498,1732241453496,-503.76013175,0.00059599,120]
[342975499,1732241453506,-500.0,0.00059599,120]
[342975500,1732241453515,-500.0,0.00059599,120]
[342975501,1732241453527,-500.0,0.00059599,120]
[342975502,1732241453536,-500.0,0.00059599,120]
[342975503,1732241453546,-500.0,0.00059599,120]
[342975504,1732241453555,-528.27719936,0.00059599,120]
[342975505,1732241453564,-500.85881568,0.00059599,30]
[342975506,1732241453574,-500.0,0.00059599,120]
[342975507,1732241453583,-500.0,0.00059599,120]
[342975508,1732241453592,-500.0,0.00059599,120]
[342975509,1732241453602,-500.0,0.00059599,120]
[342975510,1732241453611,-500.0,0.00059599,120]
[342975511,1732241453620,-500.0,0.00059599,120]
[342975512,1732241453630,-500.0,0.00059599,120]
[342975513,1732241453639,-500.0,0.00059599,120]
[342975514,1732241453648,-500.0,0.00059599,20]
[342975515,1732241453658,-500.0,0.00059599,120]
[342975516,1732241453667,-500.0,0.00059599,120]
[342975517,1732241453678,-500.0,0.00059599,120]
[342975518,1732241453687,-500.0,0.00059599,120]
[342975519,1732241453696,-500.0,0.00059599,120]
[342975520,1732241453706,-500.0,0.00059599,120]
[342975521,1732241453715,-527.89747945,0.00059599,120]
[342975522,1732241453725,-502.69524021,0.00059599,120]
[342975523,1732241453734,-500.0,0.00059599,120]
[342975524,1732241453743,-500.0,0.00059599,120]
[342975525,1732241453754,-500.0,0.00059599,120]
[342975526,1732241453763,-500.0,0.00059599,120]
[342975527,1732241453775,-500.0,0.00059599,120]
[342975528,1732241453785,-500.99573585,0.00059599,120]
[342975529,1732241453794,-500.0,0.00059599,120]
[342975530,1732241453803,-500.0,0.00059599,120]
[342975531,1732241453813,-500.0,0.00059599,120]
[342975532,1732241453823,-500.0,0.00059599,120]
[342975533,1732241453833,-529.55273255,0.00059599,120]
[342975534,1732241453843,-503.28853062,0.00059599,120]
[342975535,1732241453852,-500.0,0.00059599,120]
[342975536,1732241453862,-500.0,0.00059599,120]
[342975537,1732241453872,-500.0,0.00059599,120]
[342975538,1732241453883,-500.0,0.00059599,120]
[342975539,1732241453893,-500.0,0.00059599,120]
[342975540,1732241453902,-500.0,0.00059599,120]
[342975541,1732241453911,-536.16445418,0.00059599,120]
[342975542,1732241453921,-500.0,0.00059599,120]
[342975543,1732241453931,-502.77456145,0.00059599,120]
[342975544,1732241453940,-630.09264137,0.00059599,120]
[342975545,1732241453950,-543.78733772,0.00059599,120]
[342975546,1732241453962,-499.1519189,0.00059599,120]
[342975547,1732241453972,-500.0,0.00059599,120]
[342975548,1732241453981,-501.70200133,0.00059599,120]
[342975549,1732241453991,-530.75216793,0.00059599,120]
[342975550,1732241454000,-500.0,0.00059599,120]
[342975551,1732241454010,-500.0,0.00059599,120]
[342975552,1732241454019,-500.0,0.00059599,120]
[342975553,1732241454030,-535.48122442,0.00059599,120]
[342975554,1732241454040,-521.78358159,0.00059599,120]
[342975555,1732241454049,-500.0,0.00059599,120]
[342975556,1732241454059,-505.34034831,0.00059599,120]
[342975557,1732241454068,-501.78497778,0.00059599,120]
[342975558,1732241454078,-500.0,0.00059599,120]
[342975559,1732241454088,-547.51864723,0.00059599,120]
[342975560,1732241454098,-500.0,0.00059599,120]
[342975561,1732241454108,-500.98377763,0.00059599,120]
[342975562,1732241454117,-500.0,0.00059599,120]
[342975563,1732241454126,-537.22122881,0.00059599,120]
[342975564,1732241454136,-500.0,0.00059599,120]
[342975565,1732241454236,-500.0,0.00059599,120]
[342975566,1732241454248,-530.73929588,0.00059599,120]
[342975567,1732241454258,-548.66597698,0.00059599,120]
[342975568,1732241454268,-531.71138071,0.00059599,120]
[342975569,1732241454279,-500.0,0.00059599,120]
[342975570,1732241454288,-500.0,0.00059599,120]
[342975571,1732241454297,-500.0,0.00059599,120]
[342975572,1732241454307,-500.0,0.00059599,120]
[342975573,1732241454316,-500.0,0.00059599,120]
[342975574,1732241454325,-500.0,0.00059599,120]
[342975575,1732241454335,-500.0,0.00059599,120]
[342975576,1732241454344,-500.0,0.00059599,120]
[342975577,1732241454353,-500.0,0.00059599,120]
[342975578,1732241454363,-500.0,0.00059599,120]
[342975579,1732241454372,-517.28931602,0.00059599,120]
[342975580,1732241454382,-507.13519094,0.00059599,120]
[342975581,1732241454391,-500.0,0.00059599,120]
[342975582,1732241454401,-500.0,0.00059599,120]
[342975583,1732241454410,-500.0,0.00059599,120]
[342975584,1732241454419,-500.0,0.00059599,120]
[342975585,1732241454429,-1290.19222,0.0005962,102]
[342975586,1732241454438,-500.0,0.00059797,120]
[342975587,1732241454448,-500.0,0.00059797,120]
[342975588,1732241454458,-500.0,0.00059797,120]
[342975589,1732241454469,-566.30559453,0.00059797,120]
[342975590,1732241454479,-576.04550381,0.00059797,120]
[342975591,1732241454490,-500.0,0.00059797,120]
[342975592,1732241454502,-500.0,0.00059797,120]
[342975593,1732241454513,-500.0,0.00059797,120]
[342975594,1732241454527,-1000.0,0.00059797,120]
[342975595,1732241454538,-500.0,0.00059797,120]
[342975596,1732241454549,-571.57603327,0.00059797,120]
[342975597,1732241454560,-659.36,0.00059797,120]
[342975598,1732241454569,-500.0,0.00059797,120]
[342975599,1732241454580,-152.4096789,0.00059797,120]
[342975600,1732241454590,-500.0,0.00059797,120]
[342975601,1732241454599,-500.0,0.00059797,120]
[342975602,1732241454608,-500.0,0.00059797,120]
[342975603,1732241454617,-500.0,0.00059797,120]
[342975604,1732241454626,-535.5020294,0.00059797,120]
[342975605,1732241454636,-574.01,0.00059797,120]
[342975606,1732241454647,-500.0,0.00059797,120]
[342975607,1732241454657,-554.62,0.00059797,120]
[342975608,1732241454667,-500.0,0.00059797,120]
[342975609,1732241454677,-500.0,0.00059797,120]
[342975610,1732241454687,-521.34,0.00059797,21]
[342975611,1732241454697,-500.0,0.00059797,120]
[342975612,1732241454707,-500.0,0.00059797,120]
[342975613,1732241454716,-500.0,0.00059797,120]
[342975614,1732241454726,-500.0,0.00059797,120]
[342975615,1732241454735,-589.06030479,0.00059797,120]
[342975616,1732241454745,-500.0,0.00059797,120]
[342975617,1732241454755,-500.0,0.00059797,120]
[342975618,1732241454764,-20721.62091285,0.00059797,14]
[342975619,1732241454776,-500.0,0.00059797,120]
[342975620,1732241454785,-500.0,0.00059797,120]
[342975621,1732241454795,-500.0,0.00059797,120]
[342975622,1732241454805,-537.5012723,0.00059797,120]
[342975623,1732241454815,-500.0,0.00059797,120]
[342975624,1732241454825,-500.0,0.00059797,120]
[342975625,1732241454836,-500.0,0.00059797,120]
[342975626,1732241454845,-500.0,0.00059797,120]
[342975627,1732241454855,-500.0,0.00059797,120]
[342975628,1732241454865,-397.07316366,0.00059797,120]
[342975629,1732241454880,-500.0,0.00059797,120]
[342975630,1732241454889,-500.0,0.00059797,120]
[342975631,1732241454899,-500.0,0.00059797,120]
[342975632,1732241454908,-500.0,0.00059797,120]
[342975633,1732241454919,-634.78,0.00059797,120]
[342975634,1732241454930,-500.0,0.00059797,120]
[342975635,1732241454939,-176.28577239,0.00059797,120]
[342975636,1732241454948,-500.0,0.00059797,120]
[342975637,1732241454960,-189.30649952,0.00059797,120]
[342975638,1732241454970,-1294.47,0.00059797,120]
[342975639,1732241454979,-500.0,0.00059797,120]
[342975640,1732241454989,-500.0,0.00059797,120]
[342975641,1732241454999,-1482.65,0.00059797,120]
[342975642,1732241455009,-329.45580545,0.00059798,120]
[342975643,1732241455019,-500.0,0.00059798,120]
[342975644,1732241455029,-500.0,0.00059798,120]
[342975645,1732241455039,-500.0,0.00059798,120]
[342975646,1732241455048,-500.0,0.00059798,120]
[342975647,1732241455058,-500.0,0.00059798,120]
[342975648,1732241455067,-503.12854641,0.00059798,120]
[342975649,1732241455077,-504.43369351,0.00059798,120]
[342975650,1732241455087,-503.97355473,0.00059798,120]
[342975651,1732241455098,-502.56057318,0.00059798,120]
[342975652,1732241455107,-500.0,0.00059798,120]
[342975653,1732241455117,-212.66407876,0.00059798,120]
[342975654,1732241455126,-500.0,0.00059798,120]
[342975655,1732241455135,-510.27201946,0.00059798,120]
[342975656,1732241455145,-267.78281616,0.00059798,120]
[342975657,1732241455154,-528.50487506,0.00059798,120]
[342975658,1732241455163,-500.0,0.00059798,120]
[342975659,1732241455174,-503.32986559,0.00059798,120]
[342975660,1732241455184,-500.0,0.00059798,120]
[342975661,1732241455193,-500.0,0.00059798,120]
[342975662,1732241455203,-500.0,0.00059798,120]
[342975663,1732241455212,-500.0,0.00059798,120]
[342975664,1732241455222,-504.75203431,0.00059798,120]
[342975665,1732241455231,-500.0,0.00059798,120]
[342975666,1732241455240,-500.0,0.00059798,120]
[342975667,1732241455250,-500.0,0.00059798,120]
[342975668,1732241455259,-500.0,0.00059798,120]
[342975669,1732241455269,-313.05455002,0.00059798,120]
[342975670,1732241455279,-500.0,0.00059798,120]
[342975671,1732241455289,-500.0,0.00059798,120]
[342975672,1732241455298,-500.0,0.00059798,120]
[342975673,1732241455308,-500.0,0.00059798,120]
[342975674,1732241455317,-500.0,0.00059798,120]
[342975675,1732241455327,-256.74597884,0.00059798,120]
[342975676,1732241455336,-500.0,0.00059798,120]
[342975677,1732241455346,-500.0,0.00059798,120]
[342975678,1732241455356,-500.0,0.00059798,120]
[342975679,1732241455366,-500.0,0.00059798,120]
[342975680,1732241455375,-500.0,0.00059798,120]
[342975681,1732241455385,-500.0,0.00059798,120]
[342975682,1732241455394,-255.88482336,0.00059798,120]
[342975683,1732241455404,-500.0,0.00059798,120]
[342975684,1732241455414,-500.0,0.00059798,120]
[342975685,1732241455424,-185.6360663,0.00059798,120]
[342975686,1732241455433,-400.40169583,0.00059798,120]
[342975687,1732241455442,-500.0,0.00059798,120]
[342975688,1732241455451,-548.82478087,0.00059798,120]
[342975689,1732241455461,-616.32574109,0.00059798,120]
[342975690,1732241455471,-500.0,0.00059798,120]
[342975691,1732241455480,-500.0,0.00059798,120]
[342975692,1732241455489,-514.93588491,0.00059798,120]
[342975693,1732241455498,-500.0,0.00059798,120]
[342975694,1732241455508,-500.0,0.00059798,120]
[342975695,1732241455518,-500.0,0.00059798,120]
[342975696,1732241455529,-274.05047136,0.00059798,120]
[342975697,1732241455538,-501.49684332,0.00059798,120]
[342975698,1732241455547,-415.83465377,0.00059798,120]
[342975699,1732241455556,-500.0,0.00059798,120]
[342975700,1732241455565,-379.23106796,0.00059798,120]
[342975701,1732241455575,-352.15942976,0.00059798,120]
[342975702,1732241455584,-545.67540382,0.00059798,120]
[342975703,1732241455594,-612.07162402,0.00059798,120]
[342975704,1732241455603,-500.0,0.00059798,120]
[342975705,1732241455612,-502.61158412,0.00059798,120]
[342975706,1732241455622,-500.0,0.00059798,120]
[342975707,1732241455632,-500.0,0.00059798,120]
[342975708,1732241455641,-575.46560964,0.00059798,120]
[342975709,1732241455651,-626.91642508,0.00059798,120]
[342975710,1732241455661,-500.0,0.00059798,120]
[342975711,1732241455672,-200.0,0.00059798,7]
[342975712,1732241455681,-500.0,0.00059798,120]
[342975713,1732241455691,-500.0,0.00059798,120]
[342975714,1732241455701,-500.0,0.00059798,120]
[342975715,1732241455711,-500.0,0.00059798,120]
[342975716,1732241455720,-500.0,0.00059798,120]
[342975717,1732241455730,-504.0248002,0.00059798,120]
[342975718,1732241455740,-500.0,0.00059798,120]
[342975719,1732241455750,-500.0,0.00059798,120]
[342975720,1732241455759,-500.0,0.00059798,120]
[342975721,1732241455768,-500.0,0.00059798,120]
[342975722,1732241455779,-500.0,0.00059798,120]
[342975723,1732241455788,-500.0,0.00059798,120]
[342975724,1732241455798,-500.0,0.00059798,120]
[342975725,1732241455807,-500.0,0.00059798,120]
[342975726,1732241455816,-500.0,0.00059798,120]
[342975727,1732241455825,-500.0,0.00059798,120]
[342975728,1732241455835,-500.0,0.00059798,120]
[342975729,1732241455845,-500.0,0.00059798,7]
[342975730,1732241455855,-500.0,0.00059798,120]
[342975731,1732241455864,-500.0,0.00059798,120]
[342975732,1732241455874,-500.0,0.00059798,120]
[342975733,1732241455885,-500.0,0.00059798,120]
[342975734,1732241455895,-500.0,0.00059798,120]
[342975735,1732241455905,-500.0,0.00059798,120]
[342975736,1732241455915,-168.0,0.00059798,120]
[342975737,1732241455924,-500.0,0.00059798,120]
[342975738,1732241455934,-646.6626409,0.00059798,120]
[342975739,1732241455944,-512.65520625,0.00059798,120]
[342975740,1732241455953,-500.0,0.00059798,120]
[342975741,1732241455965,-500.0,0.00059798,120]
[342975742,1732241455975,-541.43158334,0.00059798,120]
[342975743,1732241455984,-500.0,0.00059798,120]
[342975744,1732241455994,-500.0,0.00059798,120]
[342975745,1732241456004,-502.65488542,0.00059798,120]
[342975746,1732241456013,-500.0,0.00059798,120]
[342975747,1732241456023,-622.50513531,0.00059798,120]
[342975748,1732241456034,-500.0,0.00059798,120]
[342975749,1732241456043,-566.84154041,0.00059798,120]
[342975750,1732241456053,-500.0,0.00059798,120]
[342975751,1732241456148,-500.0,0.00059798,120]
[342975752,1732241456158,-648.85064151,0.00059798,120]
[342975753,1732241456169,-514.90481797,0.00059798,120]
[342975754,1732241456178,-500.0,0.00059798,120]
[342975755,1732241456188,-2000.0,0.00059798,30]
[342975756,1732241456197,-500.0,0.00059798,120]
[342975757,1732241456207,-500.0,0.00059798,120]
[342975758,1732241456217,-390.77644276,0.00059798,120]
[342975759,1732241456226,-500.0,0.00059798,120]
[342975760,1732241456235,-441.65726383,0.00059798,120]
[342975761,1732241456245,-534.0615338,0.00059798,120]
[342975762,1732241456254,-500.0,0.00059798,120]
[342975763,1732241456264,-500.0,0.00059798,120]
[342975764,1732241456274,-500.0,0.00059798,120]
[342975765,1732241456285,-493.37282146,0.00059798,120]
[342975766,1732241456295,-500.0,0.00059798,120]
[342975767,1732241456304,-500.0,0.00059798,120]
[342975768,1732241456314,-500.0,0.00059798,120]
[342975769,1732241456323,-500.0,0.00059798,120]
[342975770,1732241456333,-505.6387476,0.00059798,120]
[342975771,1732241456343,-500.0,0.00059798,120]
[342975772,1732241456352,-500.0,0.00059798,120]
[342975773,1732241456362,-500.0,0.00059798,120]
[342975774,1732241456372,-500.0,0.00059798,120]
[342975775,1732241456382,-500.0,0.00059798,120]
[342975776,1732241456391,-500.0,0.00059798,120]
[342975777,1732241456401,-500.0,0.00059798,120]
[342975778,1732241456410,-500.0,0.00059798,120]
[342975779,1732241456420,-500.0,0.00059798,120]
[342975780,1732241456430,-238.94659795,0.00059798,120]
[342975781,1732241456440,-500.14001262,0.00059798,120]
[342975782,1732241456449,-500.0,0.00059798,120]
[342975783,1732241456459,-500.0,0.00059798,120]
[342975784,1732241456469,-500.0,0.00059798,120]
[342975785,1732241456478,-169.31586105,0.00059798,120]
[342975786,1732241456488,-500.0,0.00059798,120]
[342975787,1732241456498,-500.0,0.00059798,120]
[342975788,1732241456507,-500.0,0.00059798,120]
[342975789,1732241456516,-500.0,0.00059798,120]
[342975790,1732241456527,-500.0,0.00059798,120]
[342975791,1732241456536,-152.16673859,0.00059798,120]
[342975792,1732241456546,-500.0,0.00059798,120]
[342975793,1732241456556,-500.0,0.00059798,120]
[342975794,1732241456566,-518.46263677,0.00059798,120]
[342975795,1732241456575,-533.62593311,0.00059798,120]
[342975796,1732241456585,-500.0,0.00059798,120]
[342975797,1732241456595,-500.0,0.00059798,120]
[342975798,1732241456604,-505.51000065,0.00059798,120]
[342975799,1732241456614,-500.0,0.00059798,120]
[342975800,1732241456623,-500.0,0.00059798,120]
[342975801,1732241456633,-500.0,0.00059798,120]
[342975802,1732241456643,-500.0,0.00059798,120]
[342975803,1732241456653,-503.95642964,0.00059798,120]
[342975804,1732241456663,-500.0,0.00059798,120]
[342975805,1732241456673,-503.47198227,0.00059798,120]
[342975806,1732241456683,-500.0,0.00059798,120]
[342975807,1732241456693,-500.0,0.00059798,120]
[342975808,1732241456703,-500.0,0.00059798,120]
[342975809,1732241456713,-572.53733739,0.00059798,120]
[342975810,1732241456722,-500.0,0.00059798,120]
[342975811,1732241456732,-536.28174089,0.00059798,120]
[342975812,1732241456742,-500.0,0.00059798,120]
[342975813,1732241456751,-475.0,0.00059798,120]
[342975814,1732241456761,-625.08667702,0.00059798,120]
[342975815,1732241456771,-515.49397384,0.00059798,120]
[342975816,1732241456781,-500.0,0.00059798,120]
[342975817,1732241456791,-500.0,0.00059798,120]
[342975818,1732241456800,-500.0,0.00059798,120]
[342975819,1732241456809,-508.33262228,0.00059798,120]
[342975820,1732241456819,-465.84500223,0.00059798,120]
[342975821,1732241456828,-528.72389852,0.00059798,120]
[342975822,1732241456839,-422.44196779,0.00059798,120]
[342975823,1732241456848,-500.0,0.00059798,120]
[342975824,1732241456857,-499.27887702,0.00059798,120]
[342975825,1732241456867,-500.0,0.00059798,120]
[342975826,1732241456881,-558.68139228,0.00059798,120]
[342975827,1732241456891,-500.0,0.00059798,120]
[342975828,1732241456901,-500.0,0.00059798,120]
[342975829,1732241456910,-500.0,0.00059798,2]
[342975830,1732241456921,-500.0,0.00059798,120]
[342975831,1732241456931,-500.0,0.00059798,120]
[342975832,1732241456940,-563.49708525,0.00059798,120]
[342975833,1732241456951,-642.71042811,0.00059798,120]
[342975834,1732241456962,-500.0,0.00059798,120]
[342975835,1732241456972,-500.0,0.00059798,120]
[342975836,1732241456982,-500.0,0.00059798,120]
[342975837,1732241456992,-500.0,0.00059798,120]
[342975838,1732241457001,-165.60183681,0.00059798,120]
[342975839,1732241457011,-500.0,0.00059798,120]
[342975840,1732241457020,-500.0,0.00059798,120]
[342975841,1732241457031,-502.04183776,0.00059798,120]
[342975842,1732241457041,-500.0,0.00059798,120]
[342975843,1732241457051,-551.63066718,0.00059798,120]
[342975844,1732241457062,-500.0,0.00059798,120]
[342975845,1732241457071,-500.0,0.00059798,120]
[342975846,1732241457081,-576.21929982,0.00059798,120]
[342975847,1732241457091,-501.45761554,0.00059798,120]
[342975848,1732241457100,-500.0,0.00059798,120]
[342975849,1732241457109,-502.02808471,0.00059798,120]
[342975850,1732241457119,-500.0,0.00059798,120]
[342975851,1732241457128,-522.64177127,0.00059798,120]
[342975852,1732241457138,-1500.0,0.00059798,120]
[342975853,1732241457147,-504.2074853,0.00059798,120]
[342975854,1732241457156,-500.0,0.00059798,120]
[342975855,1732241457165,-500.0,0.00059798,120]
[342975856,1732241457175,-500.0,0.00059798,120]
[342975857,1732241457185,-500.0,0.00059798,120]
[342975858,1732241457194,-500.0,0.00059798,120]
[342975859,1732241457203,-500.0,0.00059798,120]
[342975860,1732241457213,-500.0,0.00059798,120]
[342975861,1732241457223,-500.0,0.00059798,120]
[342975862,1732241457233,-500.0,0.00059798,120]
[342975863,1732241457242,-502.56279196,0.00059798,120]
[342975864,1732241457251,-500.79085384,0.00059798,120]
[342975865,1732241457261,-500.0,0.00059798,120]
[342975866,1732241457270,-457.29442582,0.00059798,120]
[342975867,1732241457281,-215.96106162,0.00059798,120]
[342975868,1732241457291,-526.62244029,0.00059798,120]
[342975869,1732241457301,-267.20771499,0.00059798,120]
[342975870,1732241457310,-582.00295788,0.00059798,120]
[342975871,1732241457320,-500.0,0.00059798,120]
[342975872,1732241457329,-503.31325166,0.00059798,120]
[342975873,1732241457339,-500.0,0.00059798,120]
[342975874,1732241457348,-571.01504139,0.00059798,120]
[342975875,1732241457358,-500.0,0.00059798,120]
[342975876,1732241457367,-500.0,0.00059798,120]
[342975877,1732241457377,-500.0,0.00059798,120]
[342975878,1732241457386,-500.0,0.00059798,120]
[342975879,1732241457395,-500.0,0.00059798,120]
[342975880,1732241457405,-500.0,0.00059798,120]
[342975881,1732241457414,-500.0,0.00059798,120]
[342975882,1732241457424,-601.3,0.00059798,120]
[342975883,1732241457433,-500.0,0.00059798,120]
[342975884,1732241457443,-509.84,0.00059798,120]
[342975885,1732241457452,-510.29992235,0.00059798,120]
[342975886,1732241457462,-500.0,0.00059798,120]
[342975887,1732241457471,-500.0,0.00059798,120]
[342975888,1732241457481,-500.0,0.00059798,120]
[342975889,1732241457491,-225.84107852,0.00059798,120]
[342975890,1732241457499,-500.0,0.00059798,120]
[342975891,1732241457509,-503.65778431,0.00059798,120]
[342975892,1732241457517,-503.53493982,0.00059798,120]
[342975893,1732241457527,-500.0,0.00059798,120]
[342975894,1732241457536,-500.0,0.00059798,120]
[342975895,1732241457546,-517.04903469,0.00059798,120]
[342975896,1732241457555,-501.84334347,0.00059798,120]
[342975897,1732241457565,-500.0,0.00059798,120]
[342975898,1732241457575,-636.13736114,0.00059798,120]
[342975899,1732241457584,-500.0,0.00059798,120]
[342975900,1732241457594,-307.45911274,0.00059798,120]
[342975901,1732241457604,-500.0,0.00059798,120]
[342975902,1732241457614,-659.36,0.00059798,120]
[342975903,1732241457624,-500.0,0.00059798,120]
[342975904,1732241457633,-500.0,0.00059798,120]
[342975905,1732241457643,-500.0,0.00059798,120]
[342975906,1732241457653,-500.0,0.00059798,120]
[342975907,1732241457662,-500.0,0.00059798,120]
[342975908,1732241457672,-500.0,0.00059798,120]
[342975909,1732241457681,-500.0,0.00059798,120]
[342975910,1732241457690,-500.0,0.00059798,120]
[342975911,1732241457700,-524.60234966,0.00059798,120]
[342975912,1732241457709,-500.0,0.00059798,120]
[342975913,1732241457719,-253.23493998,0.00059798,120]
[342975914,1732241457728,-503.91227345,0.00059798,120]
[342975915,1732241457738,-500.0,0.00059798,120]
[342975916,1732241457748,-500.0,0.00059798,120]
[342975917,1732241457758,-501.10846708,0.00059798,120]
[342975918,1732241457767,-500.0,0.00059798,120]
[342975919,1732241457777,-500.0,0.00059798,120]
[342975920,1732241457788,-608.49,0.00059798,120]
[342975921,1732241457797,-500.0,0.00059798,120]
[342975922,1732241457893,-500.0,0.00059798,120]
[342975923,1732241457904,-500.0,0.00059798,120]
[342975924,1732241457915,-500.0,0.00059798,120]
[342975925,1732241457925,-246.69806575,0.00059798,120]
[342975926,1732241457935,-500.0,0.00059798,120]
[342975927,1732241457945,-502.81803851,0.00059798,120]
[342975928,1732241457955,-500.0,0.00059798,120]
[342975929,1732241457967,-550.126732,0.00059798,120]
[342975930,1732241457976,-500.0,0.00059798,120]
[342975931,1732241457986,-500.0,0.00059798,120]
[342975932,1732241457996,-616.95630309,0.00059798,120]
[342975933,1732241458006,-500.0,0.00059798,120]
[342975934,1732241458015,-500.0,0.00059798,120]
[342975935,1732241458025,-500.0,0.00059798,120]
[342975936,1732241458035,-504.07338153,0.00059798,120]
[342975937,1732241458045,-502.52890748,0.00059798,120]
[342975938,1732241458054,-159.34891519,0.00059798,120]
[342975939,1732241458063,-500.0,0.00059798,120]
[342975940,1732241458071,-500.0,0.00059798,120]
[342975941,1732241458079,-521.34,0.00059798,21]
[342975942,1732241458089,-501.60257978,0.00059798,120]
[342975943,1732241458099,-500.0,0.00059798,120]
[342975944,1732241458109,-500.0,0.00059798,120]
[342975945,1732241458119,-500.0,0.00059798,120]
[342975946,1732241458129,-2825.36,0.00059798,2]
[342975947,1732241458139,-500.0,0.00059798,120]
[342975948,1732241458149,-500.0,0.00059798,120]
[342975949,1732241458160,-505.47614839,0.00059798,120]
[342975950,1732241458170,-500.0,0.00059798,120]
[342975951,1732241458180,-504.47214588,0.00059798,120]
[342975952,1732241458190,-500.0,0.00059798,120]
[342975953,1732241458201,-500.0,0.00059798,120]
[342975954,1732241458212,-195.60676594,0.00059798,120]
[342975955,1732241458223,-500.0,0.00059798,120]
[342975956,1732241458234,-500.0,0.00059798,120]
[342975957,1732241458245,-500.0,0.00059798,120]
[342975958,1732241458255,-500.0,0.00059798,120]
[342975959,1732241458265,-500.0,0.00059798,120]
[342975960,1732241458275,-563.7178079,0.00059798,120]